[Event "January 9 Early 2024"]
[Site "https://www.chess.com"]
[Date "2024.01.11"]
[Round "11"]
[White "Sethuraman, S.P."]
[Black "Chu, Wei Chao"]
[Result "0-1"]
[Board "200"]
[TimeControl "180+1"]
[WhiteFideId "5021596"]
[BlackFideId "8605661"]
[WhiteElo "2873"]
[BlackElo "2654"]
[WhiteTeam "IND"]
[BlackTeam "CHN"]
[WhiteClock "0:00:07"]
[BlackClock "0:00:03"]

1. e4 {[%clk 0:03:00]}  e5 {[%clk 0:02:58]} 2. Nf3 {[%clk 0:03:01]}  Nc6 {[%clk 0:02:59]} 3. Bc4 {[%clk 0:03:01]}  Bc5 {[%clk 0:02:59]} 4. d3 {[%clk 0:03:01]}  Nf6 {[%clk 0:02:59]} 5. c3 {[%clk 0:03:02]}  d6 {[%clk 0:03:00]} 6. Bg5 {[%clk 0:02:59]}  a6 {[%clk 0:02:58]} 7. a4 {[%clk 0:02:58]}  h6 {[%clk 0:02:58]} 8. Bh4 {[%clk 0:02:58]}  g5 {[%clk 0:02:57]} 9. Bg3 {[%clk 0:02:59]}  Ba7 {[%clk 0:02:58]} 10. Nbd2 {[%clk 0:02:58]}  O-O {[%clk 0:02:56]} 11. h4 {[%clk 0:02:55]}  g4 {[%clk 0:02:54]} 12. Nh2 {[%clk 0:02:55]}  Kg7 {[%clk 0:02:49]} 13. Qe2 {[%clk 0:02:39]}  Ne7 {[%clk 0:02:48]} 14. Nhf1 {[%clk 0:02:21]}  Nh5 {[%clk 0:02:28]} 15. Ne3 {[%clk 0:02:19]}  Bxe3 {[%clk 0:02:26]} 16. Qxe3 {[%clk 0:02:17]}  f5 {[%clk 0:02:27]} 17. Bh2 {[%clk 0:02:11]}  f4 {[%clk 0:02:24]} 18. Qe2 {[%clk 0:02:10]}  Ng6 {[%clk 0:02:22]} 19. g3 {[%clk 0:02:09]}  f3 {[%clk 0:02:18]} 20. Qd1 {[%clk 0:02:08]}  Nf6 {[%clk 0:02:15]} 21. Qc2 {[%clk 0:02:05]}  h5 {[%clk 0:02:14]} 22. Nf1 {[%clk 0:02:04]}  d5 {[%clk 0:02:12]} 23. Bb3 {[%clk 0:02:04]}  d4 {[%clk 0:02:04]} 24. Nd2 {[%clk 0:02:03]}  c6 {[%clk 0:01:55]} 25. a5 {[%clk 0:02:01]}  Re8 {[%clk 0:01:53]} 26. Nc4 {[%clk 0:01:58]}  Be6 {[%clk 0:01:52]} 27. Kd2 {[%clk 0:01:51]}  Rc8 {[%clk 0:01:49]} 28. Rhe1 {[%clk 0:01:44]}  Rc7 {[%clk 0:01:46]} 29. Ra4 {[%clk 0:01:43]}  Nd7 {[%clk 0:01:40]} 30. Nd6 {[%clk 0:01:36]}  Bxb3 {[%clk 0:01:27]} 31. Qxb3 {[%clk 0:01:33]}  Nc5 {[%clk 0:01:17]} 32. Nxe8+ {[%clk 0:01:27]}  Qxe8 {[%clk 0:01:17]} 33. Qb6 {[%clk 0:01:27]}  Qe7 {[%clk 0:01:00]} 34. Rc4 {[%clk 0:01:22]}  Ne6 {[%clk 0:00:59]} 35. Kc2 {[%clk 0:01:20]}  Rd7 {[%clk 0:00:58]} 36. Rd1 {[%clk 0:01:19]}  Qd6 {[%clk 0:00:51]} 37. Bg1 {[%clk 0:01:15]}  Ne7 {[%clk 0:00:50]} 38. Qb4 {[%clk 0:01:12]}  c5 {[%clk 0:00:49]} 39. Qb3 {[%clk 0:01:11]}  Nc6 {[%clk 0:00:48]} 40. Qa3 {[%clk 0:01:07]}  Na7 {[%clk 0:00:43]} 41. Qb3 {[%clk 0:01:03]}  Nb5 {[%clk 0:00:43]} 42. Ra4 {[%clk 0:00:57]}  Nd8 {[%clk 0:00:42]} 43. c4 {[%clk 0:00:54]}  Na7 {[%clk 0:00:41]} 44. Kb1 {[%clk 0:00:54]}  Nac6 {[%clk 0:00:41]} 45. Qa3 {[%clk 0:00:52]}  Nb4 {[%clk 0:00:41]} 46. Rd2 {[%clk 0:00:51]}  Ndc6 {[%clk 0:00:41]} 47. Qb3 {[%clk 0:00:49]}  Qc7 {[%clk 0:00:39]} 48. Qa3 {[%clk 0:00:49]}  Qd6 {[%clk 0:00:38]} 49. Qb3 {[%clk 0:00:50]}  Qh6 {[%clk 0:00:39]} 50. Qd1 {[%clk 0:00:48]}  Re7 {[%clk 0:00:37]} 51. Ka1 {[%clk 0:00:44]}  Re8 {[%clk 0:00:37]} 52. Kb1 {[%clk 0:00:44]}  Rb8 {[%clk 0:00:37]} 53. Ka1 {[%clk 0:00:45]}  Kf7 {[%clk 0:00:36]} 54. Ra3 {[%clk 0:00:45]}  Qd6 {[%clk 0:00:32]} 55. Qa4 {[%clk 0:00:44]}  Qc7 {[%clk 0:00:30]} 56. Rd1 {[%clk 0:00:43]}  b5 {[%clk 0:00:26]} 57. axb6 {[%clk 0:00:43]}  Rxb6 {[%clk 0:00:25]} 58. Rd2 {[%clk 0:00:43]}  Qb7 {[%clk 0:00:23]} 59. Bh2 {[%clk 0:00:42]}  Ke6 {[%clk 0:00:23]} 60. Bg1 {[%clk 0:00:42]}  Kd6 {[%clk 0:00:24]} 61. Bh2 {[%clk 0:00:42]}  Qg7 {[%clk 0:00:24]} 62. Bg1 {[%clk 0:00:43]}  Qh6 {[%clk 0:00:24]} 63. Qd1 {[%clk 0:00:43]}  a5 {[%clk 0:00:22]} 64. Kb1 {[%clk 0:00:42]}  Qf8 {[%clk 0:00:21]} 65. Ka1 {[%clk 0:00:43]}  Qb8 {[%clk 0:00:21]} 66. Qa4 {[%clk 0:00:42]}  Na6 {[%clk 0:00:20]} 67. Qd1 {[%clk 0:00:41]}  Rb4 {[%clk 0:00:20]} 68. Bh2 {[%clk 0:00:39]}  Qb7 {[%clk 0:00:19]} 69. Bg1 {[%clk 0:00:39]}  Nc7 {[%clk 0:00:19]} 70. Bh2 {[%clk 0:00:39]}  Na8 {[%clk 0:00:20]} 71. Bg1 {[%clk 0:00:38]}  Nb6 {[%clk 0:00:20]} 72. Rc2 {[%clk 0:00:27]}  a4 {[%clk 0:00:19]} 73. Qd2 {[%clk 0:00:26]}  Qg7 {[%clk 0:00:17]} 74. Ka2 {[%clk 0:00:25]}  Na5 {[%clk 0:00:16]} 75. Qe1 {[%clk 0:00:24]}  Nb3 {[%clk 0:00:15]} 76. Kb1 {[%clk 0:00:23]}  Qh6 {[%clk 0:00:12]} 77. Ka2 {[%clk 0:00:22]}  Qg7 {[%clk 0:00:12]} 78. Kb1 {[%clk 0:00:22]}  Nc8 {[%clk 0:00:10]} 79. Ka2 {[%clk 0:00:22]}  Na7 {[%clk 0:00:09]} 80. Kb1 {[%clk 0:00:20]}  Nc6 {[%clk 0:00:09]} 81. Qd1 {[%clk 0:00:17]}  Qh6 {[%clk 0:00:09]} 82. Qe1 {[%clk 0:00:17]}  Qh7 {[%clk 0:00:09]} 83. Qd1 {[%clk 0:00:17]}  Qb7 {[%clk 0:00:09]} 84. Qe1 {[%clk 0:00:17]}  Nca5 {[%clk 0:00:09]} 85. Qd1 {[%clk 0:00:17]}  Qa6 {[%clk 0:00:08]} 86. Qe1 {[%clk 0:00:17]}  Qb6 {[%clk 0:00:09]} 87. Qd1 {[%clk 0:00:17]}  Nb7 {[%clk 0:00:09]} 88. Qe1 {[%clk 0:00:17]}  Nd8 {[%clk 0:00:09]} 89. Qd1 {[%clk 0:00:17]}  Nc6 {[%clk 0:00:09]} 90. Qe1 {[%clk 0:00:17]}  Qa7 {[%clk 0:00:05]} 91. Qd1 {[%clk 0:00:17]}  Rb8 {[%clk 0:00:05]} 92. Rd2 {[%clk 0:00:15]}  Nxd2+ {[%clk 0:00:05]} 93. Qxd2 {[%clk 0:00:16]}  Qg7 {[%clk 0:00:03]} 94. Rxa4 {[%clk 0:00:16]}  Rb6 {[%clk 0:00:03]} 95. Ra8 {[%clk 0:00:16]}  Nb4 {[%clk 0:00:03]} 96. Ra4 {[%clk 0:00:14]}  Kc6 {[%clk 0:00:03]} 97. Ra3 {[%clk 0:00:14]}  Kb7 {[%clk 0:00:04]} 98. Ra4 {[%clk 0:00:13]}  Ra6 {[%clk 0:00:04]} 99. Rxa6 {[%clk 0:00:09]}  Kxa6 {[%clk 0:00:05]} 100. Qd1 {[%clk 0:00:10]}  Qd7 {[%clk 0:00:04]} 101. Qd2 {[%clk 0:00:08]}  Ka5 {[%clk 0:00:03]} 102. Qd1 {[%clk 0:00:07]}  Qa4 {[%clk 0:00:03]} 0-1

[Event "January 9 Early 2024"]
[Site "https://www.chess.com"]
[Date "2024.01.11"]
[Round "11"]
[White "Bryakin, Mikhail"]
[Black "Kleiman, Jake"]
[Result "1/2-1/2"]
[Board "201"]
[TimeControl "180+1"]
[WhiteFideId "4165314"]
[BlackFideId "2020041"]
[WhiteElo "2842"]
[BlackElo "2665"]
[WhiteTeam "SRB"]
[BlackTeam "USA"]
[WhiteClock "0:00:04"]
[BlackClock "0:00:15"]

1. g3 {[%clk 0:02:35]}  d5 {[%clk 0:02:59]} 2. Bg2 {[%clk 0:02:28]}  e6 {[%clk 0:03:00]} 3. c4 {[%clk 0:02:27]}  Nf6 {[%clk 0:03:01]} 4. b3 {[%clk 0:02:27]}  dxc4 {[%clk 0:02:58]} 5. bxc4 {[%clk 0:02:27]}  Qd4 {[%clk 0:02:59]} 6. Qa4+ {[%clk 0:02:16]}  Nbd7 {[%clk 0:02:34]} 7. Nc3 {[%clk 0:02:14]}  Bc5 {[%clk 0:02:26]} 8. e3 {[%clk 0:02:14]}  Qd3 {[%clk 0:02:20]} 9. Bf1 {[%clk 0:02:13]}  Qf5 {[%clk 0:02:11]} 10. d4 {[%clk 0:02:12]}  Be7 {[%clk 0:02:11]} 11. Bg2 {[%clk 0:02:11]}  O-O {[%clk 0:02:01]} 12. Nge2 {[%clk 0:02:11]}  e5 {[%clk 0:01:51]} 13. O-O {[%clk 0:02:07]}  Nb6 {[%clk 0:01:50]} 14. Qb3 {[%clk 0:02:05]}  Qh5 {[%clk 0:01:41]} 15. c5 {[%clk 0:02:02]}  Nbd7 {[%clk 0:01:39]} 16. Ba3 {[%clk 0:01:52]}  c6 {[%clk 0:01:39]} 17. Rae1 {[%clk 0:01:49]}  Re8 {[%clk 0:01:35]} 18. h3 {[%clk 0:01:49]}  Bf8 {[%clk 0:01:32]} 19. g4 {[%clk 0:01:50]}  Qh4 {[%clk 0:01:32]} 20. Ng3 {[%clk 0:01:50]}  Nb8 {[%clk 0:01:20]} 21. Nce4 {[%clk 0:01:23]}  Nxe4 {[%clk 0:01:07]} 22. Nxe4 {[%clk 0:01:24]}  Na6 {[%clk 0:01:03]} 23. f4 {[%clk 0:01:14]}  exd4 {[%clk 0:00:54]} 24. exd4 {[%clk 0:01:15]}  Nc7 {[%clk 0:00:54]} 25. f5 {[%clk 0:01:08]}  Rb8 {[%clk 0:00:51]} 26. Bc1 {[%clk 0:01:07]}  Qd8 {[%clk 0:00:45]} 27. Bf4 {[%clk 0:01:03]}  Ra8 {[%clk 0:00:41]} 28. Nd6 {[%clk 0:00:56]}  Bxd6 {[%clk 0:00:39]} 29. Bxd6 {[%clk 0:00:56]}  Nb5 {[%clk 0:00:35]} 30. f6 {[%clk 0:00:50]}  Be6 {[%clk 0:00:31]} 31. Qe3 {[%clk 0:00:48]}  gxf6 {[%clk 0:00:19]} 32. Qh6 {[%clk 0:00:48]}  Nxd6 {[%clk 0:00:18]} 33. cxd6 {[%clk 0:00:42]}  Qxd6 {[%clk 0:00:12]} 34. Be4 {[%clk 0:00:43]}  Qg3+ {[%clk 0:00:10]} 35. Kh1 {[%clk 0:00:44]}  f5 {[%clk 0:00:10]} 36. gxf5 {[%clk 0:00:39]}  Bxf5 {[%clk 0:00:10]} 37. Rg1 {[%clk 0:00:29]}  Bxe4+ {[%clk 0:00:07]} 38. Rxe4 {[%clk 0:00:28]}  Qxg1+ {[%clk 0:00:08]} 39. Kxg1 {[%clk 0:00:29]}  Rxe4 {[%clk 0:00:08]} 40. Qg5+ {[%clk 0:00:28]}  Kh8 {[%clk 0:00:08]} 41. Qf6+ {[%clk 0:00:27]}  Kg8 {[%clk 0:00:08]} 42. Qg5+ {[%clk 0:00:28]}  Kh8 {[%clk 0:00:08]} 43. Qf5 {[%clk 0:00:23]}  Re6 {[%clk 0:00:07]} 44. Qxf7 {[%clk 0:00:22]}  Rg6+ {[%clk 0:00:05]} 45. Kf2 {[%clk 0:00:20]}  Rg7 {[%clk 0:00:06]} 46. Qf6 {[%clk 0:00:19]}  Kg8 {[%clk 0:00:05]} 47. Qe6+ {[%clk 0:00:18]}  Rf7+ {[%clk 0:00:06]} 48. Ke3 {[%clk 0:00:18]}  Rd8 {[%clk 0:00:06]} 49. h4 {[%clk 0:00:16]}  Kf8 {[%clk 0:00:06]} 50. Qh6+ {[%clk 0:00:16]}  Ke8 {[%clk 0:00:07]} 51. h5 {[%clk 0:00:14]}  Rd5 {[%clk 0:00:06]} 52. Kd3 {[%clk 0:00:13]}  Rfd7 {[%clk 0:00:05]} 53. Qe6+ {[%clk 0:00:13]}  Kd8 {[%clk 0:00:05]} 54. Qg8+ {[%clk 0:00:12]}  Kc7 {[%clk 0:00:06]} 55. Qg3+ {[%clk 0:00:13]}  Kb6 {[%clk 0:00:06]} 56. h6 {[%clk 0:00:07]}  Rxd4+ {[%clk 0:00:07]} 57. Kc2 {[%clk 0:00:07]}  Rc4+ {[%clk 0:00:07]} 58. Kb2 {[%clk 0:00:07]}  Rd5 {[%clk 0:00:06]} 59. Qg7 {[%clk 0:00:06]}  Rb5+ {[%clk 0:00:06]} 60. Ka3 {[%clk 0:00:06]}  Rc3+ {[%clk 0:00:06]} 61. Ka4 {[%clk 0:00:06]}  a5 {[%clk 0:00:06]} 62. Qxc3 {[%clk 0:00:03]}  Rb4+ {[%clk 0:00:06]} 63. Ka3 {[%clk 0:00:03]}  c5 {[%clk 0:00:06]} 64. Qf6+ {[%clk 0:00:02]}  Ka7 {[%clk 0:00:06]} 65. Qg7 {[%clk 0:00:02]}  Ka6 {[%clk 0:00:05]} 66. Qxh7 {[%clk 0:00:02]}  c4 {[%clk 0:00:05]} 67. Qg6+ {[%clk 0:00:01]}  b6 {[%clk 0:00:05]} 68. Qf5 {[%clk 0:00:02]}  c3 {[%clk 0:00:05]} 69. Qf1+ {[%clk 0:00:02]}  Kb7 {[%clk 0:00:05]} 70. Qc1 {[%clk 0:00:02]}  Rc4 {[%clk 0:00:05]} 71. h7 {[%clk 0:00:03]}  Rh4 {[%clk 0:00:06]} 72. Qxc3 {[%clk 0:00:03]}  Rxh7 {[%clk 0:00:06]} 73. Qd3 {[%clk 0:00:03]}  Rc7 {[%clk 0:00:07]} 74. Qd5+ {[%clk 0:00:04]}  Ka7 {[%clk 0:00:07]} 75. Qd6 {[%clk 0:00:04]}  Rc5 {[%clk 0:00:08]} 76. Qd7+ {[%clk 0:00:04]}  Ka6 {[%clk 0:00:08]} 77. Qd3+ {[%clk 0:00:05]}  Kb7 {[%clk 0:00:09]} 78. Qd8 {[%clk 0:00:05]}  Ka6 {[%clk 0:00:10]} 79. Qd7 {[%clk 0:00:06]}  Rc3+ {[%clk 0:00:08]} 80. Kb2 {[%clk 0:00:06]}  Rc5 {[%clk 0:00:09]} 81. Kb3 {[%clk 0:00:06]}  Rb5+ {[%clk 0:00:09]} 82. Kc4 {[%clk 0:00:06]}  Rc5+ {[%clk 0:00:10]} 83. Kd4 {[%clk 0:00:07]}  a4 {[%clk 0:00:09]} 84. Qxa4+ {[%clk 0:00:07]}  Ra5 {[%clk 0:00:10]} 85. Qb3 {[%clk 0:00:07]}  Rc5 {[%clk 0:00:10]} 86. Qg8 {[%clk 0:00:07]}  Ra5 {[%clk 0:00:11]} 87. Qa8+ {[%clk 0:00:06]}  Kb5 {[%clk 0:00:11]} 88. Qe8+ {[%clk 0:00:07]}  Ka6 {[%clk 0:00:12]} 89. Kc4 {[%clk 0:00:07]}  Ka7 {[%clk 0:00:10]} 90. Kb4 {[%clk 0:00:06]}  Rc5 {[%clk 0:00:10]} 91. Qd7+ {[%clk 0:00:06]}  Kb8 {[%clk 0:00:10]} 92. Qd8+ {[%clk 0:00:06]}  Kb7 {[%clk 0:00:11]} 93. Qe7+ {[%clk 0:00:06]}  Kb8 {[%clk 0:00:11]} 94. Qd8+ {[%clk 0:00:06]}  Kb7 {[%clk 0:00:12]} 95. Qd4 {[%clk 0:00:06]}  Kb8 {[%clk 0:00:12]} 96. Qf6 {[%clk 0:00:06]}  Kb7 {[%clk 0:00:13]} 97. Qd6 {[%clk 0:00:07]}  Ka7 {[%clk 0:00:12]} 98. a4 {[%clk 0:00:05]}  Kb7 {[%clk 0:00:13]} 99. Qe6 {[%clk 0:00:06]}  Ka7 {[%clk 0:00:13]} 100. Qd7+ {[%clk 0:00:06]}  Kb8 {[%clk 0:00:12]} 101. Qd6+ {[%clk 0:00:06]}  Kb7 {[%clk 0:00:13]} 102. Qh2 {[%clk 0:00:06]}  Ka7 {[%clk 0:00:13]} 103. Qg1 {[%clk 0:00:05]}  Kb7 {[%clk 0:00:13]} 104. Qg7+ {[%clk 0:00:05]}  Kb8 {[%clk 0:00:13]} 105. Qd7 {[%clk 0:00:05]}  Ka8 {[%clk 0:00:13]} 106. Kb3 {[%clk 0:00:05]}  Kb8 {[%clk 0:00:13]} 107. Qd8+ {[%clk 0:00:06]}  Kb7 {[%clk 0:00:14]} 108. Qd3 {[%clk 0:00:06]}  Kb8 {[%clk 0:00:14]} 109. Qd2 {[%clk 0:00:06]}  Kb7 {[%clk 0:00:15]} 110. Qb4 {[%clk 0:00:07]}  Ka7 {[%clk 0:00:15]} 111. Qh4 {[%clk 0:00:08]}  Kb7 {[%clk 0:00:15]} 112. Qh8 {[%clk 0:00:08]}  Ka7 {[%clk 0:00:16]} 113. Ka3 {[%clk 0:00:09]}  Kb7 {[%clk 0:00:16]} 114. Qe8 {[%clk 0:00:09]}  Ka7 {[%clk 0:00:16]} 115. Qd7+ {[%clk 0:00:10]}  Kb8 {[%clk 0:00:17]} 116. Qd6+ {[%clk 0:00:10]}  Kb7 {[%clk 0:00:17]} 117. Kb2 {[%clk 0:00:09]}  Ka7 {[%clk 0:00:17]} 118. Qd1 {[%clk 0:00:06]}  Kb7 {[%clk 0:00:17]} 119. a5 {[%clk 0:00:06]}  Rxa5 {[%clk 0:00:17]} 120. Qd7+ {[%clk 0:00:07]}  Kb8 {[%clk 0:00:17]} 121. Qd8+ {[%clk 0:00:07]}  Kb7 {[%clk 0:00:17]} 122. Qd7+ {[%clk 0:00:07]}  Kb8 {[%clk 0:00:17]} 123. Qc6 {[%clk 0:00:08]}  Ka7 {[%clk 0:00:16]} 124. Qc7+ {[%clk 0:00:08]}  Ka8 {[%clk 0:00:15]} 125. Qxb6 {[%clk 0:00:05]}  Ra2+ {[%clk 0:00:15]} 126. Kb3 {[%clk 0:00:05]}  Rb2+ {[%clk 0:00:15]} 127. Kxb2 {[%clk 0:00:04]} 1/2-1/2

[Event "January 9 Early 2024"]
[Site "https://www.chess.com"]
[Date "2024.01.11"]
[Round "11"]
[White "Kolmagorov, Alexey"]
[Black "Panda Sambit"]
[Result "1/2-1/2"]
[Board "202"]
[TimeControl "180+1"]
[WhiteFideId "34129402"]
[BlackFideId "25091794"]
[WhiteElo "2407"]
[BlackElo "2575"]
[WhiteTeam "RUS"]
[BlackTeam "IND"]
[WhiteClock "0:00:09"]
[BlackClock "0:00:24"]

1. d4 {[%clk 0:02:54]}  d5 {[%clk 0:02:59]} 2. c4 {[%clk 0:02:54]}  e6 {[%clk 0:02:59]} 3. g3 {[%clk 0:02:55]}  dxc4 {[%clk 0:02:58]} 4. Bg2 {[%clk 0:02:54]}  c5 {[%clk 0:02:58]} 5. Nf3 {[%clk 0:02:53]}  Nc6 {[%clk 0:02:58]} 6. Qa4 {[%clk 0:02:43]}  cxd4 {[%clk 0:02:56]} 7. Nxd4 {[%clk 0:02:38]}  Qxd4 {[%clk 0:02:50]} 8. Bxc6+ {[%clk 0:02:38]}  Bd7 {[%clk 0:02:48]} 9. Bxd7+ {[%clk 0:02:39]}  Qxd7 {[%clk 0:02:49]} 10. Qxc4 {[%clk 0:02:39]}  Rc8 {[%clk 0:02:48]} 11. Qf4 {[%clk 0:02:40]}  Bb4+ {[%clk 0:01:50]} 12. Nd2 {[%clk 0:02:21]}  Bd6 {[%clk 0:01:19]} 13. Qg5 {[%clk 0:02:16]}  f6 {[%clk 0:01:09]} 14. Qh5+ {[%clk 0:02:10]}  g6 {[%clk 0:01:08]} 15. Qf3 {[%clk 0:02:02]}  f5 {[%clk 0:01:02]} 16. O-O {[%clk 0:02:00]}  Nf6 {[%clk 0:01:01]} 17. b3 {[%clk 0:01:56]}  Be5 {[%clk 0:01:01]} 18. Rb1 {[%clk 0:01:56]}  b5 {[%clk 0:00:55]} 19. Rd1 {[%clk 0:01:50]}  Qe7 {[%clk 0:00:42]} 20. Bb2 {[%clk 0:01:40]}  Bxb2 {[%clk 0:00:41]} 21. Rxb2 {[%clk 0:01:41]}  O-O {[%clk 0:00:41]} 22. Nf1 {[%clk 0:01:40]}  e5 {[%clk 0:00:41]} 23. Rbd2 {[%clk 0:01:32]}  e4 {[%clk 0:00:23]} 24. Qf4 {[%clk 0:01:32]}  Rc6 {[%clk 0:00:23]} 25. Ne3 {[%clk 0:01:30]}  Nh5 {[%clk 0:00:19]} 26. Qh6 {[%clk 0:01:26]}  Qg7 {[%clk 0:00:18]} 27. Qg5 {[%clk 0:01:20]}  Qf6 {[%clk 0:00:17]} 28. Qh6 {[%clk 0:01:13]}  Qg7 {[%clk 0:00:16]} 29. Qxg7+ {[%clk 0:01:07]}  Kxg7 {[%clk 0:00:16]} 30. Rd7+ {[%clk 0:01:07]}  Rf7 {[%clk 0:00:16]} 31. Rxf7+ {[%clk 0:01:07]}  Kxf7 {[%clk 0:00:16]} 32. Rd7+ {[%clk 0:01:08]}  Ke6 {[%clk 0:00:17]} 33. Rxa7 {[%clk 0:01:08]}  f4 {[%clk 0:00:14]} 34. Ng4 {[%clk 0:00:53]}  f3 {[%clk 0:00:14]} 35. exf3 {[%clk 0:00:52]}  exf3 {[%clk 0:00:15]} 36. h4 {[%clk 0:00:52]}  Rc1+ {[%clk 0:00:14]} 37. Kh2 {[%clk 0:00:52]}  Nf6 {[%clk 0:00:10]} 38. Ra6+ {[%clk 0:00:51]}  Kf5 {[%clk 0:00:09]} 39. Nxf6 {[%clk 0:00:45]}  Rf1 {[%clk 0:00:07]} 40. g4+ {[%clk 0:00:34]}  Kf4 {[%clk 0:00:07]} 41. Nd5+ {[%clk 0:00:34]}  Ke4 {[%clk 0:00:07]} 42. Nc3+ {[%clk 0:00:28]}  Kf4 {[%clk 0:00:07]} 43. Nd5+ {[%clk 0:00:15]}  Ke4 {[%clk 0:00:06]} 44. Nc3+ {[%clk 0:00:14]}  Kf4 {[%clk 0:00:05]} 45. Rf6+ {[%clk 0:00:07]}  Kxg4 {[%clk 0:00:05]} 46. Ne4 {[%clk 0:00:07]}  Re1 {[%clk 0:00:05]} 47. Nd2 {[%clk 0:00:06]}  Re2 {[%clk 0:00:04]} 48. Nxf3 {[%clk 0:00:06]}  Rxf2+ {[%clk 0:00:04]} 49. Kg1 {[%clk 0:00:06]}  Rxa2 {[%clk 0:00:04]} 50. Ne5+ {[%clk 0:00:06]}  Kxh4 {[%clk 0:00:04]} 51. Rf7 {[%clk 0:00:06]}  Kg3 {[%clk 0:00:03]} 52. Rf1 {[%clk 0:00:04]}  Rg2+ {[%clk 0:00:02]} 53. Kh1 {[%clk 0:00:04]}  Rh2+ {[%clk 0:00:02]} 54. Kg1 {[%clk 0:00:04]}  Rb2 {[%clk 0:00:03]} 55. Rf3+ {[%clk 0:00:04]}  Kh4 {[%clk 0:00:03]} 56. Rf7 {[%clk 0:00:04]}  Kg3 {[%clk 0:00:02]} 57. Rf3+ {[%clk 0:00:04]}  Kh4 {[%clk 0:00:02]} 58. Rf7 {[%clk 0:00:04]}  Rxb3 {[%clk 0:00:03]} 59. Rxh7+ {[%clk 0:00:04]}  Kg3 {[%clk 0:00:03]} 60. Kf1 {[%clk 0:00:04]}  Rb1+ {[%clk 0:00:04]} 61. Ke2 {[%clk 0:00:05]}  g5 {[%clk 0:00:04]} 62. Rg7 {[%clk 0:00:05]}  Kf4 {[%clk 0:00:03]} 63. Nd3+ {[%clk 0:00:05]}  Kf5 {[%clk 0:00:04]} 64. Rf7+ {[%clk 0:00:04]}  Kg6 {[%clk 0:00:04]} 65. Rf3 {[%clk 0:00:03]}  b4 {[%clk 0:00:03]} 66. Rf8 {[%clk 0:00:03]}  b3 {[%clk 0:00:03]} 67. Rb8 {[%clk 0:00:04]}  g4 {[%clk 0:00:02]} 68. Kf2 {[%clk 0:00:02]}  Rd1 {[%clk 0:00:01]} 69. Ne5+ {[%clk 0:00:01]}  Kf5 {[%clk 0:00:01]} 70. Nxg4 {[%clk 0:00:02]}  Kxg4 {[%clk 0:00:02]} 71. Rxb3 {[%clk 0:00:02]}  Rd2+ {[%clk 0:00:02]} 72. Ke3 {[%clk 0:00:02]}  Rh2 {[%clk 0:00:03]} 73. Rb4+ {[%clk 0:00:03]}  Kg3 {[%clk 0:00:04]} 74. Rb3 {[%clk 0:00:03]}  Kg2 {[%clk 0:00:04]} 75. Kd4 {[%clk 0:00:03]}  Rh4+ {[%clk 0:00:04]} 76. Kc5 {[%clk 0:00:03]}  Rh5+ {[%clk 0:00:04]} 77. Kb4 {[%clk 0:00:04]}  Kf2 {[%clk 0:00:05]} 78. Rb2+ {[%clk 0:00:04]}  Ke3 {[%clk 0:00:05]} 79. Rb3+ {[%clk 0:00:05]}  Kd4 {[%clk 0:00:06]} 80. Ka3 {[%clk 0:00:05]}  Rh8 {[%clk 0:00:06]} 81. Rb4+ {[%clk 0:00:04]}  Kc3 {[%clk 0:00:06]} 82. Rb3+ {[%clk 0:00:04]}  Kc2 {[%clk 0:00:07]} 83. Rb2+ {[%clk 0:00:04]}  Kc3 {[%clk 0:00:07]} 84. Rb3+ {[%clk 0:00:05]}  Kc4 {[%clk 0:00:08]} 85. Rb4+ {[%clk 0:00:05]}  Kc5 {[%clk 0:00:09]} 86. Rb3 {[%clk 0:00:04]}  Ra8+ {[%clk 0:00:10]} 87. Kb2 {[%clk 0:00:05]}  Rg8 {[%clk 0:00:10]} 88. Rc3+ {[%clk 0:00:05]}  Kb4 {[%clk 0:00:11]} 89. Rb3+ {[%clk 0:00:05]}  Kc4 {[%clk 0:00:12]} 90. Rc3+ {[%clk 0:00:06]}  Kd4 {[%clk 0:00:13]} 91. Rc2 {[%clk 0:00:05]}  Rb8+ {[%clk 0:00:14]} 92. Kc1 {[%clk 0:00:06]}  Rf8 {[%clk 0:00:14]} 93. Kb2 {[%clk 0:00:06]}  Kd3 {[%clk 0:00:15]} 94. Rc3+ {[%clk 0:00:06]}  Kd2 {[%clk 0:00:16]} 95. Rc2+ {[%clk 0:00:06]}  Kd3 {[%clk 0:00:17]} 96. Rc3+ {[%clk 0:00:07]}  Kd4 {[%clk 0:00:18]} 97. Rc2 {[%clk 0:00:06]}  Rb8+ {[%clk 0:00:18]} 98. Kc1 {[%clk 0:00:07]}  Kd3 {[%clk 0:00:18]} 99. Rd2+ {[%clk 0:00:07]}  Kc3 {[%clk 0:00:19]} 100. Rc2+ {[%clk 0:00:08]}  Kd3 {[%clk 0:00:19]} 101. Rd2+ {[%clk 0:00:08]}  Ke3 {[%clk 0:00:20]} 102. Rc2 {[%clk 0:00:08]}  Rb3 {[%clk 0:00:21]} 103. Rd2 {[%clk 0:00:07]}  Rc3+ {[%clk 0:00:21]} 104. Kd1 {[%clk 0:00:07]}  Ra3 {[%clk 0:00:21]} 105. Re2+ {[%clk 0:00:07]}  Kd3 {[%clk 0:00:20]} 106. Rd2+ {[%clk 0:00:08]}  Kc3 {[%clk 0:00:21]} 107. Rc2+ {[%clk 0:00:08]}  Kd3 {[%clk 0:00:20]} 108. Rd2+ {[%clk 0:00:09]}  Ke3 {[%clk 0:00:21]} 109. Re2+ {[%clk 0:00:09]}  Kf3 {[%clk 0:00:22]} 110. Rc2 {[%clk 0:00:09]}  Re3 {[%clk 0:00:21]} 111. Kd2 {[%clk 0:00:07]}  Re2+ {[%clk 0:00:21]} 112. Kc3 {[%clk 0:00:08]}  Re7 {[%clk 0:00:21]} 113. Rd2 {[%clk 0:00:07]}  Ke3 {[%clk 0:00:20]} 114. Rd3+ {[%clk 0:00:07]}  Ke4 {[%clk 0:00:20]} 115. Rd4+ {[%clk 0:00:08]}  Ke5 {[%clk 0:00:21]} 116. Rc4 {[%clk 0:00:07]}  Rg7 {[%clk 0:00:22]} 117. Rd4 {[%clk 0:00:07]}  Rg3+ {[%clk 0:00:22]} 118. Rd3 {[%clk 0:00:07]}  Rg4 {[%clk 0:00:23]} 119. Re3+ {[%clk 0:00:07]}  Kd5 {[%clk 0:00:23]} 120. Rd3+ {[%clk 0:00:08]}  Kc5 {[%clk 0:00:24]} 121. Kd2 {[%clk 0:00:09]} 1/2-1/2